Cogmind - Beta 16.1 @@@ ROGUE MODE // 2026.03.22 @ 16:14:29 Player: CONM Result: Destroyed by P-60 Hacker with Shock Rifle Performance ------------- Evolutions (2) 1000 Regions Visited (6) 1200 Robots Destroyed (86) 430 Value Destroyed (3370) 3370 Prototype IDs (3) 60 Alien Tech Used (0) 0 Bonus (1528) 1528 TOTAL SCORE: 7588 Bonus ------- High Alert Combat Kills 128 Entered Garrisons 400 Used RIF Installer 1000 Cogmind --------- Core Integrity 0/550 Matter 90/300 Energy 65/265 System Corruption 7% Temperature Warm (167) Movement Core (900) Ox17 Location -8/Garrison Parts ------- > --- POWER (1) -------- Improved Ion Engine > --- PROPULSION (3) --- (None) > --- UTILITY (5) ------ High-capacity Storage Unit Structural Scanner Salvage Targeting Computer Targeting Computer > --- WEAPON (2) ------- Particle Gun Chainsword > --- INVENTORY (20) --- Light Ion Engine Heat Sink Improved Heat Sink Large Storage Unit Large Matter Pod (0) Matter Filter Relay Coupler [NC] (30) Relay Coupler [Swarmer] (33) Relay Coupler [Grunt] (31) Improved Datajack Hammer Peak State ------------ > --- POWER ------------ Light Angular Momentum Engine > --- PROPULSION ------- Armored Treads Medium Treads Medium Treads > --- UTILITY ---------- Improved Heat Sink High-capacity Storage Unit Salvage Targeting Computer Targeting Computer Matter Filter > --- WEAPON ----------- Heavy Laser Improved Assault Rifle > --- INVENTORY -------- Light Ion Engine Improved Ion Engine Improved Ion Engine Medium Treads Medium Treads Heat Sink Large Storage Unit Large Matter Pod Structural Scanner Structural Scanner Matter Filter Particle Gun Grenade Launcher Grenade Launcher Grenade Launcher Improved Datajack Katana Katana Chainsword [Rating: 38] Favorites ----------- Power Light Angular Momentum Engine Engine Light Angular Momentum Engine Power Core Light Nuclear Core Propulsion Armored Treads Treads Armored Treads Wheel Wheel Utility High-capacity Storage Unit Device Improved Heat Sink Storage High-capacity Storage Unit Processor Salvage Targeting Computer Protection Light Armor Plating Weapon Improved Assault Rifle Energy Gun Medium Laser Ballistic Gun Improved Assault Rifle Launcher Grenade Launcher Slashing Weapon Chainsword Build | -11 -10 -9 -8 -8 -8 -8 ------- Run | Yrd Mat Mat Mat Gar Sto Gar Slots Evolved 4 | . . 2 2 . . . Power . | . . . . . . . Propulsion 1 | . . . 1 . . . Utility 3 | . . 2 1 . . . Weapon . | . . . . . . . Parts Attached 54 | 8 9 10 14 6 2 5 Power 7 | 1 1 . 3 1 . 1 Engine 4 | 1 . . 1 1 . 1 Core 3 | . 1 . 2 . . . Reactor . | . . . . . . . Propulsion 15 | 2 2 3 4 . 1 3 Treads 11 | 2 . 3 4 . 1 1 Leg . | . . . . . . . Wheel 4 | . 2 . . . . 2 Hover . | . . . . . . . Flight . | . . . . . . . Utility 13 | 2 3 2 2 3 1 . Device 8 | 1 2 1 2 1 1 . Storage 2 | 1 1 . . . . . Processor 2 | . . 1 . 1 . . Hackware . | . . . . . . . Protection 1 | . . . . 1 . . Artifact . | . . . . . . . Weapon 19 | 3 3 5 5 2 . 1 Energy Gun 5 | 3 . . 1 . . 1 Energy Cannon . | . . . . . . . Ballistic Gun 6 | . 1 2 3 . . . Ballistic Cannon . | . . . . . . . Launcher 4 | . . 2 1 1 . . Special Weapon . | . . . . . . . Impact Weapon . | . . . . . . . Slashing Weapon 4 | . 2 1 . 1 . . Piercing Weapon . | . . . . . . . Special Melee Weapon . | . . . . . . . Unidentified Prototypes 1 | . . 1 . . . . Parts Lost 34 | . 3 5 9 6 2 9 Power 5 | . . 2 1 1 . 1 Propulsion 12 | . 1 1 3 1 1 5 Utility 6 | . 1 1 2 2 . . Weapon 11 | . 1 1 3 2 1 3 Highest Loss Streak 4 | . 2 1 3 2 2 4 To Critical Strikes 1 | . . . . . 1 . Average Backups 16 | 1 6 17 18 18 17 15 Power 1 | . . . 1 2 2 1 Propulsion 3 | 1 2 5 3 2 2 1 Utility 5 | . . 4 5 7 8 8 Weapon 5 | . 2 6 7 5 4 2 Tool/Special . | . . . . . . . Unused Backups 16 | . . 1 4 2 . 9 Power 1 | . . . . . . 1 Propulsion 4 | . . . 4 . . . Utility 7 | . . . . 1 . 6 Weapon 2 | . . . . 1 . 1 Tool/Special 2 | . . 1 . . . 1 Average Slot Usage (%) 80 | . 93 82 69 86 78 73 Engine 4 | . 7 . 3 8 9 4 Core 1 | . 6 2 1 . . . Treads 22 | . 20 20 23 25 21 15 Wheel 1 | . 6 1 . . . 4 Device 9 | . 9 18 5 8 3 9 Storage 10 | . 14 11 9 9 9 9 Processor 9 | . . 5 9 16 18 18 Energy Gun 5 | . 21 5 1 2 . 2 Ballistic Gun 7 | . 4 7 14 4 . 3 Launcher 3 | . . 4 1 6 8 1 Slashing Weapon 2 | . 2 4 . 2 9 7 Peak Build Rating 38 | 7 10 22 33 38 26 23 Average Rating 21 | 4 7 15 25 29 23 21 On Entrance 16 | . 7 10 19 33 22 22 Avg Prop Armor Cover (%) 18 | . . . . . . 18 Naked Turns . | . . . . . . . Heaviest Build 61 | 15 49 50 58 61 54 54 Greatest Support 76 | 40 40 40 76 76 76 56 Greatest Overweight (x) 4 | . 2 4 2 1 1 2 Average Overweight (x) . | . . 1 . . . . Largest Inventory Capacity 20 | 8 20 20 20 20 20 20 Average Capacity 18 | 7 10 20 20 20 20 20 Most Carried 20 | 3 13 20 20 20 18 18 Average Carried 16 | 1 6 17 18 18 17 15 Final Capacity 20 | 8 20 20 20 20 20 20 Final Carried 20 | 3 13 20 19 18 18 11 Class Distribution -------------------- 95% | Mutant 4% | Scavenger-Mutant Dominant Class ---------------- Mutant | -10/Materials Mutant | -9/Materials Mutant | -8/Materials Mutant | -8/Garrison Mutant | -8/Storage Mutant | -8/Garrison Resources | -11 -10 -9 -8 -8 -8 -8 ----------- Run | Yrd Mat Mat Mat Gar Sto Gar Matter Collected 1741 | 131 77 361 636 357 165 14 Remotely . | . . . . . . . Salvage Created 2468 | 46 308 615 885 484 28 102 Parts 148 | 4 18 42 50 21 8 5 Haulers Intercepted 1 | . . 1 . . . . Recyclers Shooed 2 | . . . 2 . . . Parts Field Recycled . | . . . . . . . Retrieved Matter . | . . . . . . . Parts Self-Destructed . | . . . . . . . Prevented . | . . . . . . . Parts Restored . | . . . . . . . Kills | -11 -10 -9 -8 -8 -8 -8 ------- Run | Yrd Mat Mat Mat Gar Sto Gar Combat Hostiles Destroyed 70 | . 8 18 21 18 . 5 Melee 4 | . 1 2 . 1 . . Guns 32 | . 7 7 13 3 . 2 AOE 34 | . . 9 8 14 . 3 Classes Destroyed 13 | 1 3 3 4 1 . 1 Worker 1 | . . . 1 . . . Builder 6 | . . 1 4 . 1 . Tunneler 4 | 2 . 1 1 . . . Hauler 1 | . . 1 . . . . Recycler 1 | . . . 1 . . . Operator 2 | . 1 . . . 1 . Watcher 1 | . . . 1 . . . Swarmer 15 | . 3 3 6 3 . . Grunt 39 | . 5 12 11 9 . 2 Brawler 1 | . . . . . . 1 Duelist 1 | . . . . 1 . . Sentry 9 | . . 3 3 3 . . Hunter 5 | . . . 1 2 . 2 Best Kill Streak 10 | 1 3 6 10 7 1 3 Combat Bots Only 7 | . 3 5 6 7 . 3 Max Kills in Single Turn 3 | 1 1 3 2 3 1 2 Gunslinging . | . . . . . . . Exploded 3 | . . 2 1 3 . 2 Melee 1 | . 1 1 . 1 . . Uniques/NPCs Destroyed . | . . . . . . . Combat | -11 -10 -9 -8 -8 -8 -8 -------- Run | Yrd Mat Mat Mat Gar Sto Gar Hostile Shots Fired 459 | . 66 83 151 63 13 83 Missed 117 | . 19 19 40 13 2 24 Hits 342 | . 47 64 111 50 11 59 Projectile 342 | . 47 64 111 50 11 59 Critical Strikes 17 | . 3 . 5 2 1 6 Damage Taken 5123 | 34 563 840 1761 894 91 940 Core 857 | . 125 175 277 114 16 150 Absorbed by Shields . | . . . . . . . Regen/Repaired (Parts) 130 | . . 130 . . . . Core Remaining (%) 68 | 100 50 56 . . . . Volleys Fired 196 | 7 28 41 58 38 . 24 Largest 2 | 2 2 2 2 2 . 2 Hottest 134 | 100 100 70 92 92 . 134 Shots Fired 328 | 10 53 63 106 68 . 28 Gun 248 | 10 53 41 91 34 . 19 Cannon . | . . . . . . . Launcher 80 | . . 22 15 34 . 9 Special . | . . . . . . . Kinetic 142 | . 7 22 82 25 . 6 Thermal 93 | 8 35 19 9 9 . 13 Explosive 80 | . . 22 15 34 . 9 Electromagnetic 13 | 2 11 . . . . . Robot Hit Streak 38 | 6 11 13 15 26 . 38 Robot Miss Streak 4 | 1 3 2 3 1 . 4 Penetration Max . | . . . . . . . Secondary Targets 2 | . 1 . 1 . . . Max Gunslinging Chain 1 | . 1 . 1 . . . Shots Hit Robots 232 | 8 38 47 76 44 2 17 Core Hits 181 | 2 15 40 62 47 2 13 Critical Kills . | . . . . . . . Critical Parts Destroyed . | . . . . . . . Critical Strikes 5 | . 3 1 . 1 . . Burn 3 | . 3 . . . . . Sever 2 | . . 1 . 1 . . Melee Attacks 21 | . 5 10 . 4 2 . Impact . | . . . . . . . Slashing 21 | . 5 10 . 4 2 . Piercing . | . . . . . . . Sneak Attacks 2 | . . 1 . . 1 . Combat Hostiles . | . . . . . . . Follow-up Attacks . | . . . . . . . Damage Inflicted 7174 | 136 553 1561 2103 1975 117 729 Guns 2494 | 112 423 367 1038 379 . 175 Cannons . | . . . . . . . Explosions 4152 | 24 35 960 1065 1514 . 554 Melee 528 | . 95 234 . 82 117 . Ramming . | . . . . . . . Kinetic 1411 | . 22 156 904 264 . 65 Thermal 992 | 111 311 211 134 115 . 110 Explosive 4093 | . . 960 1065 1514 . 554 Electromagnetic 150 | 25 125 . . . . . Impact . | . . . . . . . Slashing 528 | . 95 234 . 82 117 . Piercing . | . . . . . . . Highest Corruption 7 | . . . . . . 7 Average Corruption 3 | . . . . . . 3 Corruption Purged . | . . . . . . . Corruption Blocked . | . . . . . . . Effects 1 | . . . . . . 1 Data Loss (minor) 1 | . . . . . . 1 Overload Shots . | . . . . . . . Overflow Damage 71 | . . 15 18 32 . 6 Projectiles . | . . . . . . . Explosions 56 | . . . 18 32 . 6 Melee 15 | . . 15 . . . . Knockbacks . | . . . . . . . Impact . | . . . . . . . Kinetic . | . . . . . . . Secondary . | . . . . . . . Self-Inflicted Damage 466 | 34 4 40 187 130 . 71 Shots 19 | 1 1 2 7 3 . 5 Rammed . | . . . . . . . Targets Rammed . | . . . . . . . Kicked . | . . . . . . . Crushed . | . . . . . . . Highest Temperature 258 | 72 258 73 170 123 . 185 Average Temperature 69 | 28 99 26 57 49 . 79 Received Heat Transfer 1611 | . 327 384 567 333 . . Effects 3 | . 3 . . . . . Energy Bleed 1 | . 1 . . . . . Interference 2 | . 2 . . . . . Siege Activations . | . . . . . . . Martial Activations . | . . . . . . . Shielding Activations . | . . . . . . . Robots Disrupted . | . . . . . . . Combat Hostiles . | . . . . . . . Robots Corrupted . | . . . . . . . Combat Hostiles . | . . . . . . . Parts Fried . | . . . . . . . Impact Corruptions . | . . . . . . . Robots Melted . | . . . . . . . Combat Hostiles . | . . . . . . . Parts Melted 2 | 1 1 . . . . . Heat Transferred 2690 | 309 1086 629 259 222 . 185 Parts Sabotaged . | . . . . . . . Parts Stolen . | . . . . . . . Parts Stripped . | . . . . . . . Power Chain Reactions 2 | 1 1 . . . . . Alert | -11 -10 -9 -8 -8 -8 -8 ------- Run | Yrd Mat Mat Mat Gar Sto Gar Maximum Alert Level 3 | . . 1 1 3 1 1 Low Security (%) 41 | 100 100 64 27 11 . 12 Level 1 46 | . . 35 72 37 100 87 Level 2 5 | . . . . 22 . . Level 3 6 | . . . . 28 . . Level 4 . | . . . . . . . Level 5 . | . . . . . . . High Security . | . . . . . . . Max Security . | . . . . . . . Peak Influence 820 | 5 106 259 376 820 399 349 Initial 399 | . . 22 97 162 399 198 Average 246 | . 40 108 248 485 358 308 Influence Increases 2432 | 10 244 582 665 718 17 196 Destroy 0b10 Robot/C 1400 | . 160 360 420 360 . 100 Destroy 0b10 Robot/NC 80 | 10 5 15 40 . 10 . Destroy Leader 244 | . 30 82 92 30 . 10 Successful Hack 23 | . . 12 4 . 7 . Disable Machine 90 | . . 45 45 . . . Anti-Garrison Action 150 | . . . . 150 . . Destroy Structure 235 | . 4 53 49 103 . 26 Lose Combat Pursuer 210 | . 45 15 15 75 . 60 Influence Decreases 2128 | 10 190 404 647 148 531 198 Entered New Map 784 | . . 32 135 88 421 108 Time Decay 1004 | 10 160 322 422 . 90 . Lost Part 340 | . 30 50 90 60 20 90 Squads Dispatched 4 | . . 2 2 . . . Investigation 1 | . . 1 . . . . Extermination . | . . . . . . . Reinforcement 3 | . . 1 2 . . . Assault . | . . . . . . . Garrison . | . . . . . . . Intercept . | . . . . . . . Searches Triggered . | . . . . . . . Construction Impeded 1 | . . . 1 . . . Haulers Reinforced . | . . . . . . . Active Scanning Responses . | . . . . . . . Cargo Convoy Interrupts . | . . . . . . . Stealth | -11 -10 -9 -8 -8 -8 -8 --------- Run | Yrd Mat Mat Mat Gar Sto Gar Distress Signals 5 | . . 2 2 . 1 . Communications Jammed . | . . . . . . . Distress Signals . | . . . . . . . Times Spotted 102 | . 12 25 33 18 7 7 Peak Tracking Total 8 | . 3 5 7 8 6 5 Tactical Retreats 8 | . 2 1 1 2 . 2 Traps | -11 -10 -9 -8 -8 -8 -8 ------- Run | Yrd Mat Mat Mat Gar Sto Gar Traps Triggered 2 | . . 1 . . . 1 Indirectly . | . . . . . . . Trap Hack Attempts . | . . . . . . . Triggered . | . . . . . . . Disarmed . | . . . . . . . Reprogrammed . | . . . . . . . Reused . | . . . . . . . Traps Extracted . | . . . . . . . Installed . | . . . . . . . Triggered . | . . . . . . . Machines | -11 -10 -9 -8 -8 -8 -8 ---------- Run | Yrd Mat Mat Mat Gar Sto Gar Machines Disabled 10 | . . 3 3 4 . . Max in Single Turn 1 | . . 1 1 1 . . Garrison Relay 2 | . . . . 2 . . Phase Generator 1 | . . . . 1 . . Machines Repaired . | . . . . . . . Machines Dismantled . | . . . . . . . Machines Sabotaged . | . . . . . . . Overloaded Fab Kills . | . . . . . . . Hacking | -11 -10 -9 -8 -8 -8 -8 --------- Run | Yrd Mat Mat Mat Gar Sto Gar Machines Accessed 13 | . 3 3 3 1 3 . Terminals 8 | . 3 . 2 1 2 . Fabricators . | . . . . . . . Repair Stations 1 | . . 1 . . . . Recycling Units 1 | . . 1 . . . . Scanalyzers 1 | . . 1 . . . . Garrison Access 2 | . . . 1 . 1 . Total Hacks 26 | . 8 6 3 1 8 . Successful 12 | . 2 5 1 . 4 . Failed 14 | . 6 1 2 1 4 . Catastrophic 2 | . 1 . 1 . . . Database Lockouts . | . . . . . . . Manual 2 | . 1 . 1 . . . Terminals 18 | . 8 . 2 1 7 . Fabricators . | . . . . . . . Repair Stations 2 | . . 2 . . . . Recycling Units 2 | . . 2 . . . . Scanalyzers 2 | . . 2 . . . . Garrison Access 2 | . . . 1 . 1 . Terminal Hacks 5 | . 2 . . . 3 . Prototype ID Bank 1 | . 1 . . . . . Alert Level 1 | . . . . . 1 . Registered Components 2 | . 1 . . . 1 . Zone Layout 1 | . . . . . 1 . Fabricator Hacks . | . . . . . . . Repair Station Hacks 2 | . . 2 . . . . Scan Component 1 | . . 1 . . . . Repair 1 | . . 1 . . . . Recycling Unit Hacks 2 | . . 2 . . . . Report Inventory 1 | . . 1 . . . . Retrieve Components 1 | . . 1 . . . . Scanalyzer 1 | . . 1 . . . . Retrieve Study 1 | . . 1 . . . . Garrison Access Hacks 2 | . . . 1 . 1 . Unlock Access 2 | . . . 1 . 1 . Unauthorized Hacks . | . . . . . . . Terminals . | . . . . . . . Fabricators . | . . . . . . . Repair Stations . | . . . . . . . Recycling Units . | . . . . . . . Scanalyzers . | . . . . . . . Garrison Access . | . . . . . . . Data Cores Recovered 2 | . 1 . . . 1 . Used . | . . . . . . . Hacking Detections 10 | . 3 2 2 1 2 . Full Trace Events . | . . . . . . . Feedback Events . | . . . . . . . Feedback Blocked . | . . . . . . . Robot Schematics Acquired . | . . . . . . . Robots Built . | . . . . . . . Authchips . | . . . . . . . Time . | . . . . . . . Total Robot Build Rating . | . . . . . . . Part Schematics Acquired . | . . . . . . . Parts Built . | . . . . . . . Authchips . | . . . . . . . Time . | . . . . . . . Total Part Build Rating . | . . . . . . . Part Studies Acquired 1 | . . 1 . . . . Parts Repaired 1 | . . 1 . . . . Time 13 | . . 13 . . . . Parts Recycled . | . . . . . . . Recycled Matter . | . . . . . . . Retrieved Matter . | . . . . . . . Retrieved Components 5 | . . 5 . . . . Parts Scanalyzed . | . . . . . . . Part Schematics Acquired . | . . . . . . . Parts Damaged . | . . . . . . . Bothacking | -11 -10 -9 -8 -8 -8 -8 ------------ Run | Yrd Mat Mat Mat Gar Sto Gar Used RIF Installer 2 | . . . . 1 . 1 Coupler Efficiency 1 | . . . . . . 1 Robots Hacked . | . . . . . . . Non-combat . | . . . . . . . Combat . | . . . . . . . Robot Hacks Applied . | . . . . . . . Relay Couplers Released 8 | . . . . 8 . . Machine Destruction 8 | . . . . 8 . . Fabnet Peak Effective % . | . . . . . . . Robots Rewired . | . . . . . . . Allies Hacked . | . . . . . . . Hacks Repelled . | . . . . . . . Allies | -11 -10 -9 -8 -8 -8 -8 -------- Run | Yrd Mat Mat Mat Gar Sto Gar Total Allies . | . . . . . . . Largest Group . | . . . . . . . Highest-Rated Group . | . . . . . . . Highest-Rated Ally . | . . . . . . . Total Orders . | . . . . . . . Ally Attacks . | . . . . . . . Total Damage . | . . . . . . . Kills . | . . . . . . . Allies Corrupted . | . . . . . . . Allies Melted . | . . . . . . . Intel | -11 -10 -9 -8 -8 -8 -8 ------- Run | Yrd Mat Mat Mat Gar Sto Gar Active Infowar (turns) 1345 | 1 252 836 . . 83 173 Structural 1121 | . 29 836 . . 83 173 Seismic 224 | 1 223 . . . . . Robot Analysis Total . | . . . . . . . Derelict Logs Recovered . | . . . . . . . Drone Launches . | . . . . . . . Drone Recoveries . | . . . . . . . Exploration | -11 -10 -9 -8 -8 -8 -8 ------------- Run | Yrd Mat Mat Mat Gar Sto Gar Turns Passed 3792 | 122 476 895 1031 899 196 173 Spaces Moved 1634 | 60 229 316 438 428 90 73 Core 5 | 5 . . . . . . Treads 1476 | 55 134 275 438 428 90 56 Legs . | . . . . . . . Wheels 153 | . 95 41 . . . 17 Hover . | . . . . . . . Flight . | . . . . . . . Fastest Speed 50 | 50 110 110 163 163 160 110 Average Speed 183 | 150 139 230 184 177 204 149 Slowest Speed 330 | 160 160 320 330 245 245 240 Overloaded Moves . | . . . . . . . Propulsion Burnouts . | . . . . . . . Robots Hopped . | . . . . . . . Potential Cave-ins . | . . . . . . . Cave-ins Triggered . | . . . . . . . Exploration Rate (%) 27 | 5 37 29 42 37 21 18 Regions Visited 6 Branch Regions 1 Pre-discovered Areas . | . . . . . . . Known Exits Taken 2 | . . . 1 . 1 . Unknown Exits Taken 3 | 1 1 1 . . . . Scrap Searched . | . . . . . . . Spaces Dug 1 | . . 1 . . . . Terrain Destroyed 311 | 6 3 82 58 140 . 22 Melee 1 | . . 1 . . . . Projectile . | . . . . . . . AOE 310 | 6 3 81 58 140 . 22 Terrain Rammed . | . . . . . . . Walls Destroyed . | . . . . . . . Machines Disabled . | . . . . . . . Actions | -11 -10 -9 -8 -8 -8 -8 --------- Run | Yrd Mat Mat Mat Gar Sto Gar Total 2066 | 78 321 413 555 491 99 109 Wait 81 | 1 32 11 29 5 1 2 Move 1629 | 59 228 315 437 427 90 73 Hop . | . . . . . . . Pick Up 51 | 3 13 15 11 5 3 1 Fast Attach 16 | 7 2 2 3 2 . . Attach 26 | . 2 3 8 3 2 8 Detach . | . . . . . . . Swap 27 | 1 8 9 4 4 . 1 Drop 19 | . 3 7 5 3 1 . Fire 196 | 7 28 41 58 38 . 24 Melee 21 | . 5 10 . 4 2 . Ram . | . . . . . . . Kick . | . . . . . . . Crush . | . . . . . . . Escape Stasis . | . . . . . . . Rewire . | . . . . . . . Trap . | . . . . . . . Miscellaneous . | . . . . . . . Route ------- -11/Scrapyard -10/Materials -9/Materials (discovered 2 exits: *Mat / [*Min]) -8/Materials (discovered 3 exits: [*Fac] / *Sto / Gar) -8/Garrison -8/Storage -8/Garrison History --------- Turn | Location | Event 9 | -11/Scrapyard | Discovered new exit (range 15) 123 | -11/Scrapyard | Entered Materials 314 | -10/Materials | Build established: Mutant 515 | -10/Materials | Discovered new exit (range 4) 599 | -10/Materials | Entered another Materials area 599 | -9/Materials | Evolved 2 slots: Utility x2 629 | -9/Materials | Repaired Lgt. Treads 634 | -9/Materials | Discovered new exit (range 8) 1046 | -9/Materials | Discovered new exit (range 15) 1494 | -9/Materials | Entered another Materials area 1494 | -8/Materials | Evolved 2 slots: Propulsion x1, Utility x1 2040 | -8/Materials | Lost 3 parts (1u2w) 2090 | -8/Materials | Discovered new exit (range 16) 2225 | -8/Materials | Core integrity fell below 50% 2322 | -8/Materials | Discovered new exit (range 16) 2518 | -8/Materials | Identified exit to Garrison 2525 | -8/Materials | Entered Garrison 2545 | -8/Garrison | Triggered checkpoint 2630 | -8/Garrison | Garrison Relay disabled 2697 | -8/Garrison | Triggered checkpoint 2834 | -8/Garrison | Garrison Relay disabled 2997 | -8/Garrison | Triggered checkpoint 2997 | -8/Garrison | Destroyed 7 combat bots 3082 | -8/Garrison | Discovered new exit (range 13) 3166 | -8/Garrison | Phase Generator disabled 3302 | -8/Garrison | Installed Relay Interface Framework 3424 | -8/Garrison | Entered Storage 3620 | -8/Storage | Identified exit to Garrison 3620 | -8/Storage | Entered Garrison 3663 | -8/Garrison | Expanded RIF knowledge: Coupler Efficiency 3680 | -8/Garrison | Core integrity fell below 20% 3710 | -8/Garrison | Lost 3 parts (1p1n1w) 3740 | -8/Garrison | Triggered checkpoint 3793 | -8/Garrison | Destroyed by P-60 Hacker with Shock Rifle Last Messages --------------- 03679_ Imp. Ion Engine destroyed. 03679_ Destroyed Imp. Ion Engine. 03680_ Penetrated by Slug. 03681_ Slug penetrates Wall. 03683_ Penetrated by Slug. 03685_ The unstable cave ceiling collapses. 03685_ H-55 Commando destroyed. 03689_ Penetrated by Slug. 03690_ The unstable cave ceiling collapses. 03692_ Slug penetrates Earth. 03695_ H-55 Commando destroyed. 03700_ Acquired 14 matter. 03701_ The unstable cave ceiling collapses. 03708_ Acquired Hammer. 03742_ Imp. Assault Rifle destroyed. 03742_ Med. Treads destroyed. 03784_ Wheel destroyed. 03787_ Hvy. Laser destroyed. 03789_ System corrupted: Component data lost. 03790_ Med. Treads destroyed. Map ----- +----------------------------------------------------+ | ?????????????????????????????????????????????????? | | ?????????????????????????????????????????????????? | | ?????????????????????????????????????????????????? | | ?????????????????????????????????????????????????? | | ?????????????????????????????????????????????????? | | ?????????????????????????????????????????????????? | | ?????????????????????????????????????????????????? | | ?????????????????????????????????????????????????? | | ?????????????????????????????????????????????????? | | ?????????????????????????????????????????????????? | | ?????????????????????????????## ????????????????? | | ?????????????????????????????# ??????? ????????? | | ????????????????????????????? ?????? ?????????? | | ????????????????????????????? ?????? ?? #????? | | ?????????????????????????????# ????? #? #????? | | ?????????????????????????????# #???? ## #????? | | ?????????????????????????????" ??? "????? | | ?????????????????????????????" ??? ??????? | | ?????????????????????????????" ?? ???????? | | ?????????????????????????????" ?? ????????? | | ?????????????????????????????# #? #????#????? | | ???????????????????########### ## ## #????? | | ???????????????????# #????? | | ???????????????????# #????? | | ???????????????????# #?###??# #????? | | ???????????????????# #?#@#??## ##""""## #????? | | ???????????????????# #?# #???# #???????????????? | | ???????????????????# #?# #???# #???????????????? | | ?????????????????### ###p##### #???????????????? | | ?????????????????# # ## # #???????????????? | | ?????????????????# ###### #???????????????? | | ??????????######### #p###### #???????????????? | | ??????????# #???????????????? | | ??????????# #???????????????? | | ??????????# ### # !%### #########???????????????? | | ??????????# ##^ # # #???????????????????????? | | ??????????# ##" "# ### #???????????????????????? | | ??????????# ##" "## # # #???????????????????????? | | ??????????# ##" "## #?###???????????????????????? | | ??????????# ##"""## ???????????????????????????? | | ??????????# ##########??????????????????????????? | | ??????????# #???????????????????????????????????? | | ??????????# #???????????????????????????????????? | | ????????### #???????????????????????????????????? | | ????????# #???????????????????????????????????? | | ????????# #???????????????????????????????????? | | ????????# #???????????????????????????????????? | | ????????######???????????????????????????????????? | | ?????????????????????????????????????????????????? | | ?????????????????????????????????????????????????? | +----------------------------------------------------+ Best States ------------- Heat Dissipation 45 Energy Generation 18 Energy Capacity 265 Matter Stores 300 Matter Capacity 300 Sight Range 16 Terrain Scan Density 10 Armor Coverage 150 Evasion (%) 40 Targeting Accuracy 5 Recoil Reduction 7 Matter Filtering 30 Salvage Targeting 1 Item Schematics ----------------- None Robot Schematics ------------------ None Fabricated ------------ Nothing Repaired ---------- Lgt. Treads | 7% | -9/Materials Studied --------- Grenade Launcher | -9/Materials | Hacked Alien Tech Used ----------------- None Achievements -------------- Join The Dark Side You Will Be Upgraded Challenges ------------ None Game ------ Seed HeatPrecisionRailcannon Manual? 0 Play Time 00:41:52 Cumulative 164.4 hours Start 2026.03.22 @ 03:25:40 End 2026.03.22 @ 16:14:29 Sessions 1 Manual Loads 0 Difficulty Rogue Special Mode None Game No. 177 Rogue 177 Adventurer 0 Explorer 0 Win Type - Total 0 Types 0/0/0/0/0/0/0/0/0/0 Lore% 57 Gallery% 45 Achievement% 33 Wizard Run 0 Options --------- Layout 0 ASCII 0 Keyboard 0 Movement Arrows Keybinds 0 Fullscreen 1 Font 20/SmallcapsGlow Map View 66x50 Zoom Use 0% Tactical HUD 1 Map Filters NONE Filters NONE Steam 1 RUN: ac22b25b-00b2-4c5f-a964-50fa4bd631ba